[Event "Late-Titled-Tuesday-Blitz-June-25-2024"]
[Site "Chess.com"]
[Date "2024.06.25"]
[Round "1"]
[White "betta2004"]
[Black "WoodlandMagic"]
[Result "1-0"]
[WhiteElo "2500"]
[BlackElo "2844"]
[TimeControl "180+1"]
[EndTime "14:08:28 PDT"]
[Termination "betta2004 won by resignation"]

1. Nf3 {[%clk 0:02:55]} 1... g6 {[%clk 0:02:37.1]} 2. e4 {[%clk 0:02:44]} 2...
Bg7 {[%clk 0:02:38]} 3. d4 {[%clk 0:02:43.2]} 3... a6 {[%clk 0:02:35]} 4. Nc3
{[%clk 0:02:40.9]} 4... b5 {[%clk 0:02:33.7]} 5. Bf4 {[%clk 0:02:37.1]} 5... Bb7
{[%clk 0:02:32.7]} 6. Bd3 {[%clk 0:02:35.7]} 6... d6 {[%clk 0:02:29.9]} 7. a3
{[%clk 0:02:28.9]} 7... Nd7 {[%clk 0:02:30.2]} 8. O-O {[%clk 0:02:27.4]} 8...
Rc8 {[%clk 0:02:30]} 9. e5 {[%clk 0:01:37.9]} 9... dxe5 {[%clk 0:02:23.2]} 10.
Nxe5 {[%clk 0:01:13.6]} 10... Ngf6 {[%clk 0:02:22.4]} 11. Qe2 {[%clk 0:01:11.5]}
11... O-O {[%clk 0:02:19.8]} 12. Rad1 {[%clk 0:01:10.8]} 12... e6 {[%clk
0:02:18.8]} 13. Ne4 {[%clk 0:00:59.8]} 13... Qe7 {[%clk 0:02:07.9]} 14. Nxf6+
{[%clk 0:00:52.4]} 14... Bxf6 {[%clk 0:02:03.5]} 15. Nxd7 {[%clk 0:00:48.6]}
15... Qxd7 {[%clk 0:02:03.4]} 16. Be5 {[%clk 0:00:49.1]} 16... Bxe5 {[%clk
0:02:01.3]} 17. dxe5 {[%clk 0:00:48.2]} 17... Qc6 {[%clk 0:02:00.6]} 18. f4
{[%clk 0:00:38.1]} 18... Rfd8 {[%clk 0:01:55.1]} 19. h4 {[%clk 0:00:37.1]} 19...
Rd4 {[%clk 0:01:51.4]} 20. Kh2 {[%clk 0:00:35.4]} 20... Rcd8 {[%clk 0:01:48.5]}
21. h5 {[%clk 0:00:33.9]} 21... Qe8 {[%clk 0:01:43.7]} 22. Qg4 {[%clk
0:00:28.2]} 22... Qe7 {[%clk 0:01:41.9]} 23. Rfe1 {[%clk 0:00:18.9]} 23... Kg7
{[%clk 0:01:37.7]} 24. Re3 {[%clk 0:00:18.4]} 24... c5 {[%clk 0:01:36.9]} 25.
Rf1 {[%clk 0:00:11.4]} 25... c4 {[%clk 0:01:35.1]} 26. Be2 {[%clk 0:00:11.9]}
26... Be4 {[%clk 0:01:31.7]} 27. c3 {[%clk 0:00:11.7]} 27... Bf5 {[%clk
0:01:31.9]} 28. Qg3 {[%clk 0:00:11.1]} 28... Rd2 {[%clk 0:01:29.9]} 29. hxg6
{[%clk 0:00:10.4]} 29... hxg6 {[%clk 0:01:29.6]} 30. Bf3 {[%clk 0:00:11]} 30...
Rxb2 {[%clk 0:01:27.3]} 31. Qe1 {[%clk 0:00:08.5]} 31... Rdd2 {[%clk 0:01:25]}
32. Kg1 {[%clk 0:00:06.5]} 32... Bg4 {[%clk 0:01:23.5]} 33. f5 {[%clk
0:00:01.4]} 33... exf5 {[%clk 0:01:20.3]} 34. e6 {[%clk 0:00:01.9]} 34... Bxf3
{[%clk 0:01:19.5]} 35. Rfxf3 {[%clk 0:00:01.8]} 35... Rxg2+ {[%clk 0:01:18.9]}
36. Kf1 {[%clk 0:00:02.4]} 36... Rh2 {[%clk 0:01:18.9]} 37. Kg1 {[%clk
0:00:02.3]} 37... Rbg2+ {[%clk 0:01:15]} 38. Kf1 {[%clk 0:00:02.3]} 38... Qg5
{[%clk 0:01:13.8]} 39. Rg3 {[%clk 0:00:02.9]} 39... Qf4+ {[%clk 0:01:11.6]} 40.
Ref3 {[%clk 0:00:02.5]} 40... Qd6 {[%clk 0:01:00.1]} 41. Rxg2 {[%clk 0:00:01.5]}
41... Rh1+ {[%clk 0:00:56.5]} 42. Rg1 {[%clk 0:00:02.1]} 42... Rxg1+ {[%clk
0:00:56.4]} 43. Kxg1 {[%clk 0:00:03]} 43... fxe6 {[%clk 0:00:56.8]} 44. Re3
{[%clk 0:00:02.9]} 44... Kf6 {[%clk 0:00:57.1]} 45. Qf2 {[%clk 0:00:03.5]} 45...
e5 {[%clk 0:00:57]} 46. Qh4+ {[%clk 0:00:03.9]} 46... Ke6 {[%clk 0:00:55.5]} 47.
Qg5 {[%clk 0:00:04.4]} 47... Kd5 {[%clk 0:00:51]} 48. Re1 {[%clk 0:00:04.2]}
48... Kc6 {[%clk 0:00:50.5]} 49. Qe3 {[%clk 0:00:04.4]} 49... e4 {[%clk
0:00:50.6]} 50. Kf2 {[%clk 0:00:04.6]} 50... Qxa3 {[%clk 0:00:48.9]} 51. Rd1
{[%clk 0:00:04.5]} 51... Qe7 {[%clk 0:00:36]} 52. Qf4 {[%clk 0:00:04.5]} 52...
a5 {[%clk 0:00:32.7]} 53. Ke2 {[%clk 0:00:04.7]} 53... b4 {[%clk 0:00:32.2]} 54.
Qb8 {[%clk 0:00:04.3]} 54... Qc7 {[%clk 0:00:27.8]} 55. Qa8+ {[%clk 0:00:04]}
55... Kb6 {[%clk 0:00:27.8]} 56. Qd5 {[%clk 0:00:01.8]} 56... b3 {[%clk
0:00:25.8]} 57. Rb1 {[%clk 0:00:01.4]} 57... Qc6 {[%clk 0:00:21.7]} 58. Qd4+
{[%clk 0:00:01.4]} 58... Kb5 {[%clk 0:00:21.8]} 59. Ke3 {[%clk 0:00:01.3]} 59...
a4 {[%clk 0:00:22.1]} 60. Kf4 {[%clk 0:00:01.7]} 60... a3 {[%clk 0:00:21.6]} 61.
Qe5+ {[%clk 0:00:02.2]} 61... Kb6 {[%clk 0:00:19.6]} 62. Qb8+ {[%clk 0:00:02.5]}
62... Ka6 {[%clk 0:00:16.1]} 63. Rd1 {[%clk 0:00:02.3]} 63... b2 {[%clk
0:00:07.9]} 64. Rd6 {[%clk 0:00:02.8]} 64... Qxd6+ {[%clk 0:00:08]} 65. Qxd6+
{[%clk 0:00:03.4]} 65... Ka7 {[%clk 0:00:08]} 66. Qxa3+ {[%clk 0:00:03.9]} 66...
Kb6 {[%clk 0:00:07.9]} 67. Qxb2+ {[%clk 0:00:04.8]} 67... Kc5 {[%clk 0:00:08.2]}
68. Qb4+ {[%clk 0:00:05.4]} 68... Kd5 {[%clk 0:00:08.8]} 69. Qb5+ {[%clk
0:00:06]} 69... Kd6 {[%clk 0:00:09.2]} 70. Qxc4 {[%clk 0:00:06.9]} 1-0

[Event "Late-Titled-Tuesday-Blitz-June-25-2024"]
[Site "Chess.com"]
[Date "2024.06.25"]
[Round "1"]
[White "Marielchessy"]
[Black "Puzzlebot_1294"]
[Result "0-1"]
[WhiteElo "2332"]
[BlackElo "2631"]
[TimeControl "180+1"]
[EndTime "14:08:36 PDT"]
[Termination "Puzzlebot_1294 won by resignation"]

1. e4 {[%clk 0:02:58.5]} 1... e5 {[%clk 0:02:59.3]} 2. Nf3 {[%clk 0:02:58]} 2...
Nc6 {[%clk 0:02:58.7]} 3. Bc4 {[%clk 0:02:55.9]} 3... Bc5 {[%clk 0:02:57.6]} 4.
c3 {[%clk 0:02:55.1]} 4... Nf6 {[%clk 0:02:57.3]} 5. d3 {[%clk 0:02:55.4]} 5...
d6 {[%clk 0:02:56.8]} 6. O-O {[%clk 0:02:54.5]} 6... a6 {[%clk 0:02:56.5]} 7. a4
{[%clk 0:02:52.9]} 7... Ba7 {[%clk 0:02:56.2]} 8. Bb3 {[%clk 0:02:52]} 8... O-O
{[%clk 0:02:54.6]} 9. Be3 {[%clk 0:02:51.9]} 9... h6 {[%clk 0:02:54.6]} 10. Nbd2
{[%clk 0:02:50.2]} 10... Re8 {[%clk 0:02:54.9]} 11. Re1 {[%clk 0:02:50]} 11...
Be6 {[%clk 0:02:53.8]} 12. Bc2 {[%clk 0:02:48.2]} 12... d5 {[%clk 0:02:53.5]}
13. Bxa7 {[%clk 0:02:44.3]} 13... Rxa7 {[%clk 0:02:54.4]} 14. Qe2 {[%clk
0:02:44.2]} 14... d4 {[%clk 0:02:53.2]} 15. Rad1 {[%clk 0:02:35.2]} 15... Qe7
{[%clk 0:02:48.1]} 16. Nf1 {[%clk 0:02:31.5]} 16... b5 {[%clk 0:02:43.9]} 17. h3
{[%clk 0:02:17]} 17... Rb7 {[%clk 0:02:31.7]} 18. cxd4 {[%clk 0:02:14.7]} 18...
exd4 {[%clk 0:02:06.4]} 19. Nh4 {[%clk 0:02:03.9]} 19... Nd7 {[%clk 0:01:44.5]}
20. Qh5 {[%clk 0:01:54.7]} 20... Nb4 {[%clk 0:01:33.4]} 21. Bb1 {[%clk 0:01:50]}
21... bxa4 {[%clk 0:01:30.2]} 22. Ng3 {[%clk 0:01:45.6]} 22... Nf6 {[%clk
0:01:22.8]} 23. Qf3 {[%clk 0:01:38.5]} 23... Rb5 {[%clk 0:01:20.6]} 24. Nhf5
{[%clk 0:01:32.7]} 24... Bxf5 {[%clk 0:01:13.9]} 25. Nxf5 {[%clk 0:01:30.7]}
25... Qe5 {[%clk 0:01:12.6]} 26. Rc1 {[%clk 0:01:21.7]} 26... c5 {[%clk
0:00:51.8]} 27. g3 {[%clk 0:01:16.8]} 27... h5 {[%clk 0:00:41.5]} 28. Qg2 {[%clk
0:01:13.3]} 28... g6 {[%clk 0:00:41.2]} 29. f4 {[%clk 0:01:12.5]} 29... Qe6
{[%clk 0:00:29.1]} 30. Nh4 {[%clk 0:01:08.8]} 30... Nc6 {[%clk 0:00:21.5]} 31.
Nf3 {[%clk 0:01:05.5]} 31... Reb8 {[%clk 0:00:16]} 32. Re2 {[%clk 0:00:57.3]}
32... a3 {[%clk 0:00:16.3]} 33. Ng5 {[%clk 0:00:55.4]} 33... Qd7 {[%clk
0:00:14.3]} 34. Ba2 {[%clk 0:00:55.3]} 34... Rxb2 {[%clk 0:00:14.2]} 35. Bxf7+
{[%clk 0:00:54.8]} 35... Kg7 {[%clk 0:00:13.2]} 36. e5 {[%clk 0:00:49.2]} 36...
Nh7 {[%clk 0:00:10.9]} 37. Be6 {[%clk 0:00:45.2]} 37... Qe7 {[%clk 0:00:03.9]}
38. Nxh7 {[%clk 0:00:42.7]} 38... Kxh7 {[%clk 0:00:03]} 39. Bd5 {[%clk
0:00:42.9]} 39... Rxe2 {[%clk 0:00:01.6]} 40. Qxe2 {[%clk 0:00:41.5]} 40... Nb4
{[%clk 0:00:02.5]} 41. Be4 {[%clk 0:00:37.6]} 41... Rb6 {[%clk 0:00:03.1]} 42.
Qxh5+ {[%clk 0:00:37.4]} 42... Kg7 {[%clk 0:00:02.6]} 43. Qe2 {[%clk 0:00:31.8]}
43... a2 {[%clk 0:00:03.1]} 44. Ra1 {[%clk 0:00:31.5]} 44... Qe6 {[%clk
0:00:02.8]} 45. g4 {[%clk 0:00:27.3]} 45... Qb3 {[%clk 0:00:03.3]} 46. f5 {[%clk
0:00:17.5]} 46... Qb1+ {[%clk 0:00:03.7]} 47. Kh2 {[%clk 0:00:13.6]} 47... Qxa1
{[%clk 0:00:04.2]} 48. f6+ {[%clk 0:00:12.6]} 48... Kh7 {[%clk 0:00:02.5]} 49.
Bxg6+ {[%clk 0:00:12]} 49... Kxg6 {[%clk 0:00:01.9]} 50. Qe4+ {[%clk 0:00:12.5]}
50... Kf7 {[%clk 0:00:02.4]} 51. Qh7+ {[%clk 0:00:12.1]} 51... Ke6 {[%clk
0:00:01]} 52. Qe7+ {[%clk 0:00:12.2]} 52... Kd5 {[%clk 0:00:01.7]} 53. Qd7+
{[%clk 0:00:12.1]} 53... Kxe5 {[%clk 0:00:02.6]} 54. Qc7+ {[%clk 0:00:11]} 54...
Kxf6 {[%clk 0:00:01.8]} 55. Qxb6+ {[%clk 0:00:11.3]} 55... Kg5 {[%clk
0:00:01.8]} 56. Qxc5+ {[%clk 0:00:11.5]} 56... Kg6 {[%clk 0:00:02]} 57. Qd6+
{[%clk 0:00:11.4]} 57... Kg7 {[%clk 0:00:01.6]} 58. Qe7+ {[%clk 0:00:11.4]}
58... Kg6 {[%clk 0:00:01.9]} 59. Qd6+ {[%clk 0:00:11.8]} 59... Kh7 {[%clk
0:00:02.6]} 60. Qe7+ {[%clk 0:00:11.9]} 60... Kg8 {[%clk 0:00:03.3]} 61. Qd8+
{[%clk 0:00:10.8]} 61... Kf7 {[%clk 0:00:03.6]} 62. Qd7+ {[%clk 0:00:10.5]}
62... Kf8 {[%clk 0:00:03]} 63. Qd5 {[%clk 0:00:10.8]} 63... Nxd5 {[%clk
0:00:02]} 0-1

[Event "Late-Titled-Tuesday-Blitz-June-25-2024"]
[Site "Chess.com"]
[Date "2024.06.25"]
[Round "1"]
[White "Oleg_Papayan"]
[Black "jcibarra"]
[Result "0-1"]
[WhiteElo "2502"]
[BlackElo "2944"]
[TimeControl "180+1"]
[EndTime "14:08:47 PDT"]
[Termination "jcibarra won by checkmate"]

1. d4 {[%clk 0:02:59.6]} 1... Nf6 {[%clk 0:02:59.5]} 2. Nc3 {[%clk 0:02:57.5]}
2... d6 {[%clk 0:02:55.4]} 3. e4 {[%clk 0:02:55.9]} 3... e5 {[%clk 0:02:55.3]}
4. dxe5 {[%clk 0:02:54]} 4... dxe5 {[%clk 0:02:54.7]} 5. Qxd8+ {[%clk
0:02:54.9]} 5... Kxd8 {[%clk 0:02:55.4]} 6. Bc4 {[%clk 0:02:55.6]} 6... Ke8
{[%clk 0:02:55.2]} 7. f4 {[%clk 0:02:54.6]} 7... Bb4 {[%clk 0:02:42.2]} 8. Bd3
{[%clk 0:02:54.7]} 8... Nc6 {[%clk 0:02:36.9]} 9. Nf3 {[%clk 0:02:44.9]} 9...
Bg4 {[%clk 0:02:22.8]} 10. O-O {[%clk 0:02:30.1]} 10... Bxc3 {[%clk 0:02:15.7]}
11. bxc3 {[%clk 0:02:31]} 11... Nd7 {[%clk 0:02:16]} 12. Rb1 {[%clk 0:02:26.7]}
12... Rb8 {[%clk 0:02:13.2]} 13. Be3 {[%clk 0:01:43.6]} 13... Bxf3 {[%clk
0:02:05.7]} 14. gxf3 {[%clk 0:01:40.7]} 14... exf4 {[%clk 0:01:58.2]} 15. Bxf4
{[%clk 0:01:41.6]} 15... Nce5 {[%clk 0:01:57.3]} 16. Be3 {[%clk 0:01:37.8]}
16... b6 {[%clk 0:01:54.9]} 17. f4 {[%clk 0:01:37.8]} 17... Nxd3 {[%clk
0:01:54.5]} 18. cxd3 {[%clk 0:01:38.6]} 18... Ke7 {[%clk 0:01:52.4]} 19. Kf2
{[%clk 0:01:33.9]} 19... f5 {[%clk 0:01:51.6]} 20. Rg1 {[%clk 0:01:28.2]} 20...
Kf7 {[%clk 0:01:50.8]} 21. Rg5 {[%clk 0:01:07]} 21... fxe4 {[%clk 0:01:49.1]}
22. dxe4 {[%clk 0:01:07.9]} 22... Rhe8 {[%clk 0:01:48.6]} 23. Kf3 {[%clk
0:01:06.3]} 23... Nf6 {[%clk 0:01:29.2]} 24. Rbg1 {[%clk 0:00:54.7]} 24... g6
{[%clk 0:01:19.8]} 25. f5 {[%clk 0:00:29.1]} 25... Nd7 {[%clk 0:00:42.7]} 26.
fxg6+ {[%clk 0:00:28.5]} 26... hxg6 {[%clk 0:00:42.9]} 27. Bf4 {[%clk 0:00:26]}
27... Nf8 {[%clk 0:00:42.6]} 28. Bxc7 {[%clk 0:00:22.7]} 28... Rbc8 {[%clk
0:00:42.8]} 29. Be5 {[%clk 0:00:23.1]} 29... Rc4 {[%clk 0:00:32.9]} 30. Bd4
{[%clk 0:00:19.6]} 30... Ra4 {[%clk 0:00:32.9]} 31. R1g2 {[%clk 0:00:19.3]}
31... Rc8 {[%clk 0:00:26.7]} 32. h4 {[%clk 0:00:19.1]} 32... Rc6 {[%clk
0:00:20.1]} 33. h5 {[%clk 0:00:19.1]} 33... gxh5 {[%clk 0:00:20.8]} 34. Rxh5
{[%clk 0:00:20]} 34... Ke8 {[%clk 0:00:20.9]} 35. Rg8 {[%clk 0:00:18.4]} 35...
Rc7 {[%clk 0:00:19.9]} 36. Rf5 {[%clk 0:00:17.3]} 36... Rf7 {[%clk 0:00:19]} 37.
Bg7 {[%clk 0:00:15.7]} 37... Rxf5+ {[%clk 0:00:13.2]} 38. exf5 {[%clk
0:00:16.6]} 38... Kf7 {[%clk 0:00:13.8]} 39. Rxf8+ {[%clk 0:00:16]} 39... Kxg7
{[%clk 0:00:14.4]} 40. Rc8 {[%clk 0:00:11.4]} 40... Kf6 {[%clk 0:00:14.8]} 41.
Rf8+ {[%clk 0:00:08.2]} 41... Ke5 {[%clk 0:00:15]} 42. f6 {[%clk 0:00:08.8]}
42... Rxa2 {[%clk 0:00:13]} 43. Ke3 {[%clk 0:00:07.9]} 43... Ke6 {[%clk
0:00:11.1]} 44. Kd4 {[%clk 0:00:06]} 44... Rf2 {[%clk 0:00:11.6]} 45. Kc4 {[%clk
0:00:05.1]} 45... Rf5 {[%clk 0:00:04.7]} 46. Ra8 {[%clk 0:00:02.6]} 46... Rc5+
{[%clk 0:00:04.3]} 47. Kb4 {[%clk 0:00:02.6]} 47... Ra5 {[%clk 0:00:04.1]} 48.
Rf8 {[%clk 0:00:02.2]} 48... Ra1 {[%clk 0:00:03.6]} 49. f7 {[%clk 0:00:02.6]}
49... Ke7 {[%clk 0:00:03.1]} 50. Rb8 {[%clk 0:00:02.6]} 50... Kxf7 {[%clk
0:00:03.4]} 51. c4 {[%clk 0:00:03.4]} 51... Ke6 {[%clk 0:00:03.6]} 52. c5 {[%clk
0:00:03.6]} 52... Rb1+ {[%clk 0:00:03.4]} 53. Kc4 {[%clk 0:00:03.4]} 53... Rc1+
{[%clk 0:00:03.7]} 54. Kb4 {[%clk 0:00:02.8]} 54... Rxc5 {[%clk 0:00:03.8]} 55.
Rb7 {[%clk 0:00:03.2]} 55... Ra5 {[%clk 0:00:04.1]} 56. Rh7 {[%clk 0:00:02.2]}
56... Kd6 {[%clk 0:00:04.7]} 57. Rh6+ {[%clk 0:00:02.4]} 57... Kc7 {[%clk
0:00:05.4]} 58. Rh7+ {[%clk 0:00:03]} 58... Kc6 {[%clk 0:00:06.1]} 59. Rh6+
{[%clk 0:00:03.5]} 59... Kb7 {[%clk 0:00:06.7]} 60. Rh7+ {[%clk 0:00:04]} 60...
Ka6 {[%clk 0:00:07.4]} 61. Rh8 {[%clk 0:00:04]} 61... Rb5+ {[%clk 0:00:07.9]}
62. Ka4 {[%clk 0:00:04.2]} 62... Rg5 {[%clk 0:00:08.7]} 63. Kb4 {[%clk
0:00:05.1]} 63... Rg4+ {[%clk 0:00:09.2]} 64. Kb3 {[%clk 0:00:05.6]} 64... Ka5
{[%clk 0:00:09.7]} 65. Rh5+ {[%clk 0:00:05.5]} 65... b5 {[%clk 0:00:09.9]} 66.
Rh6 {[%clk 0:00:05.9]} 66... Rg3+ {[%clk 0:00:09.3]} 67. Ka2 {[%clk 0:00:05.8]}
67... b4 {[%clk 0:00:06.9]} 68. Rh7 {[%clk 0:00:05.4]} 68... a6 {[%clk
0:00:06.7]} 69. Rh6 {[%clk 0:00:06.1]} 69... Kb5 {[%clk 0:00:06.6]} 70. Kb2
{[%clk 0:00:04.6]} 70... a5 {[%clk 0:00:06.6]} 71. Ka2 {[%clk 0:00:04.4]} 71...
Rg2+ {[%clk 0:00:06.2]} 72. Kb3 {[%clk 0:00:04.5]} 72... a4# {[%clk 0:00:06.1]}
0-1

[Event "Late-Titled-Tuesday-Blitz-June-25-2024"]
[Site "Chess.com"]
[Date "2024.06.25"]
[Round "1"]
[White "ncofre98"]
[Black "UnTucopalaTimba"]
[Result "1/2-1/2"]
[WhiteElo "2544"]
[BlackElo "2126"]
[TimeControl "180+1"]
[EndTime "14:08:50 PDT"]
[Termination "Game drawn by repetition"]

1. e4 {[%clk 0:02:56.8]} 1... c6 {[%clk 0:02:57.3]} 2. d4 {[%clk 0:02:56.5]}
2... d5 {[%clk 0:02:57]} 3. exd5 {[%clk 0:02:57]} 3... cxd5 {[%clk 0:02:57.2]}
4. Bd3 {[%clk 0:02:57.6]} 4... Nc6 {[%clk 0:02:56.6]} 5. c3 {[%clk 0:02:58.2]}
5... Nf6 {[%clk 0:02:56.4]} 6. Bf4 {[%clk 0:02:58.8]} 6... g6 {[%clk 0:02:48.6]}
7. Nd2 {[%clk 0:02:58]} 7... Bf5 {[%clk 0:02:45.6]} 8. Bxf5 {[%clk 0:02:55.1]}
8... gxf5 {[%clk 0:02:45.2]} 9. Ne2 {[%clk 0:02:54.9]} 9... e6 {[%clk
0:02:44.3]} 10. Ng3 {[%clk 0:02:54.8]} 10... h5 {[%clk 0:02:36.3]} 11. h4 {[%clk
0:02:52]} 11... Ne4 {[%clk 0:02:33.3]} 12. f3 {[%clk 0:02:48.6]} 12... Nxg3
{[%clk 0:02:31.9]} 13. Bxg3 {[%clk 0:02:49.5]} 13... Bd6 {[%clk 0:02:31.2]} 14.
Bxd6 {[%clk 0:02:44.9]} 14... Qxd6 {[%clk 0:02:30.7]} 15. Qe2 {[%clk 0:02:45.1]}
15... Rg8 {[%clk 0:02:25.4]} 16. O-O-O {[%clk 0:02:43.5]} 16... O-O-O {[%clk
0:02:22]} 17. Kb1 {[%clk 0:02:42.2]} 17... Rg3 {[%clk 0:02:08.2]} 18. Nf1 {[%clk
0:02:39.7]} 18... Rg6 {[%clk 0:02:07.1]} 19. g3 {[%clk 0:02:22.7]} 19... f4
{[%clk 0:01:56.6]} 20. g4 {[%clk 0:02:20.6]} 20... hxg4 {[%clk 0:01:55.9]} 21.
fxg4 {[%clk 0:02:21.5]} 21... Rdg8 {[%clk 0:01:55.7]} 22. g5 {[%clk 0:02:10.4]}
22... Kb8 {[%clk 0:01:47.7]} 23. Nh2 {[%clk 0:02:07.1]} 23... f6 {[%clk
0:01:39.9]} 24. gxf6 {[%clk 0:01:55.1]} 24... Rxf6 {[%clk 0:01:39.4]} 25. Nf3
{[%clk 0:01:53.1]} 25... Rg3 {[%clk 0:01:31.2]} 26. Ka1 {[%clk 0:01:41.8]} 26...
Rfg6 {[%clk 0:01:30.1]} 27. h5 {[%clk 0:01:38.3]} 27... Rg8 {[%clk 0:01:29.4]}
28. h6 {[%clk 0:01:33.2]} 28... Rh8 {[%clk 0:01:26.2]} 29. Rh4 {[%clk
0:01:21.4]} 29... a6 {[%clk 0:01:15.5]} 30. h7 {[%clk 0:01:12.5]} 30... Qe7
{[%clk 0:01:13.2]} 31. Rdh1 {[%clk 0:01:09.6]} 31... Rg7 {[%clk 0:01:02]} 32.
Qh2 {[%clk 0:01:07.7]} 32... Ka8 {[%clk 0:00:55.3]} 33. a3 {[%clk 0:00:53.8]}
33... Na5 {[%clk 0:00:48.8]} 34. Ne5 {[%clk 0:00:50.5]} 34... Nc6 {[%clk
0:00:43.2]} 35. Nxc6 {[%clk 0:00:44.1]} 35... bxc6 {[%clk 0:00:43.2]} 36. Qxf4
{[%clk 0:00:44.7]} 36... Rgxh7 {[%clk 0:00:41.9]} 37. Rxh7 {[%clk 0:00:41.6]}
37... Rxh7 {[%clk 0:00:41]} 38. Rxh7 {[%clk 0:00:42.2]} 38... Qxh7 {[%clk
0:00:40.9]} 39. Qd6 {[%clk 0:00:42.9]} 39... Qh1+ {[%clk 0:00:34.3]} 40. Ka2
{[%clk 0:00:41.9]} 40... Kb7 {[%clk 0:00:34.4]} 41. Qe7+ {[%clk 0:00:39.1]}
41... Kb6 {[%clk 0:00:33.6]} 42. Qd8+ {[%clk 0:00:27.2]} 42... Kb7 {[%clk
0:00:32.9]} 43. Qd7+ {[%clk 0:00:26.7]} 43... Kb6 {[%clk 0:00:33]} 44. Qxe6
{[%clk 0:00:19.8]} 44... Qf1 {[%clk 0:00:31.3]} 45. Qe3 {[%clk 0:00:13.1]} 45...
Qc4+ {[%clk 0:00:28.9]} 46. Kb1 {[%clk 0:00:13.2]} 46... Qf1+ {[%clk 0:00:28.7]}
47. Ka2 {[%clk 0:00:13.3]} 47... Qc4+ {[%clk 0:00:28.6]} 48. b3 {[%clk
0:00:13.6]} 48... Qf1 {[%clk 0:00:28.4]} 49. Qd2 {[%clk 0:00:13.6]} 49... a5
{[%clk 0:00:24.4]} 50. Qc2 {[%clk 0:00:13.3]} 50... Qf3 {[%clk 0:00:21.6]} 51.
a4 {[%clk 0:00:13.2]} 51... Qe3 {[%clk 0:00:20.7]} 52. Qb2 {[%clk 0:00:13.7]}
52... Qd3 {[%clk 0:00:20.3]} 53. Ka3 {[%clk 0:00:13]} 53... Qf1 {[%clk
0:00:19.7]} 54. b4 {[%clk 0:00:12.8]} 54... axb4+ {[%clk 0:00:19.1]} 55. Qxb4+
{[%clk 0:00:12.4]} 55... Kc7 {[%clk 0:00:18.9]} 56. a5 {[%clk 0:00:11.8]} 56...
Qa1+ {[%clk 0:00:18.7]} 57. Kb3 {[%clk 0:00:11.2]} 57... Qd1+ {[%clk 0:00:18.7]}
58. Kb2 {[%clk 0:00:10.8]} 58... Qd2+ {[%clk 0:00:18.7]} 59. Ka3 {[%clk
0:00:09.7]} 59... Qc1+ {[%clk 0:00:18.6]} 60. Qb2 {[%clk 0:00:09.8]} 60... Qf1
{[%clk 0:00:16.7]} 61. Qb6+ {[%clk 0:00:09.4]} 61... Kd6 {[%clk 0:00:16.5]} 62.
Qd8+ {[%clk 0:00:08.9]} 62... Ke6 {[%clk 0:00:16.4]} 63. Qe8+ {[%clk 0:00:09]}
63... Kd6 {[%clk 0:00:16.7]} 64. Qd8+ {[%clk 0:00:09.1]} 64... Ke6 {[%clk
0:00:17]} 65. Qc8+ {[%clk 0:00:03.7]} 65... Kd6 {[%clk 0:00:17.1]} 66. Qb8+
{[%clk 0:00:04.6]} 66... Kd7 {[%clk 0:00:16.9]} 67. Qb2 {[%clk 0:00:04.4]} 67...
Qa6 {[%clk 0:00:16.3]} 68. Qb4 {[%clk 0:00:02.9]} 68... Qf1 {[%clk 0:00:14.3]}
69. Kb3 {[%clk 0:00:02.2]} 69... Qb1+ {[%clk 0:00:13.8]} 70. Ka4 {[%clk
0:00:02.4]} 70... Qa2+ {[%clk 0:00:13.5]} 71. Qa3 {[%clk 0:00:02.1]} 71... Qc2+
{[%clk 0:00:13.7]} 72. Kb4 {[%clk 0:00:02.2]} 72... Qb1+ {[%clk 0:00:13.7]} 73.
Qb3 {[%clk 0:00:02.4]} 73... Qa1 {[%clk 0:00:13.7]} 74. Qa3 {[%clk 0:00:02]}
74... Qb1+ {[%clk 0:00:13.7]} 75. Qb3 {[%clk 0:00:02.9]} 75... Qa1 {[%clk
0:00:13.3]} 76. Qa4 {[%clk 0:00:02.7]} 76... Qb2+ {[%clk 0:00:13.3]} 77. Qb3
{[%clk 0:00:03.3]} 77... Qa1 {[%clk 0:00:13.2]} 1/2-1/2